[Event "Titled Tuesday Blitz June 21 Early 2022"]
[White "Sarana, Alexey"]
[Black "Cunha, Lucas Aguiar"]
[WhiteFideId "24133795"]
[BlackFideId "2125404"]
[WhiteElo "2666"]
[BlackElo "2328"]
[Result "1-0"]
[Round "02"]
[TimeControl "180+1"]
[Date "2022.06.21"]
[WhiteClock "0:00:40"]
[BlackClock "0:00:21"]

1. d4 {[%clk 0:03:00]}  Nf6 {[%clk 0:02:59]} 2. c4 {[%clk 0:03:01]}  e6 {[%clk 0:03:00]} 3. Nc3 {[%clk 0:03:01]}  Bb4 {[%clk 0:03:00]} 4. e3 {[%clk 0:03:02]}  O-O {[%clk 0:03:00]} 5. Bd3 {[%clk 0:03:03]}  c5 {[%clk 0:02:58]} 6. Ne2 {[%clk 0:03:00]}  b6 {[%clk 0:02:58]} 7. d5 {[%clk 0:02:57]}  exd5 {[%clk 0:02:53]} 8. cxd5 {[%clk 0:02:58]}  Re8 {[%clk 0:02:53]} 9. O-O {[%clk 0:02:56]}  d6 {[%clk 0:02:49]} 10. e4 {[%clk 0:02:55]}  Ba6 {[%clk 0:02:45]} 11. Ng3 {[%clk 0:02:52]}  Bxc3 {[%clk 0:02:41]} 12. bxc3 {[%clk 0:02:52]}  c4 {[%clk 0:02:39]} 13. Bc2 {[%clk 0:02:50]}  Nbd7 {[%clk 0:02:40]} 14. Nf5 {[%clk 0:02:42]}  Nc5 {[%clk 0:02:35]} 15. f3 {[%clk 0:02:18]}  h6 {[%clk 0:02:20]} 16. Qd4 {[%clk 0:02:10]}  Nd3 {[%clk 0:01:53]} 17. Ba3 {[%clk 0:01:52]}  Nc5 {[%clk 0:01:47]} 18. Rae1 {[%clk 0:01:50]}  h5 {[%clk 0:01:30]} 19. Re3 {[%clk 0:01:35]}  g6 {[%clk 0:01:29]} 20. Ng3 {[%clk 0:01:26]}  Rc8 {[%clk 0:01:11]} 21. h3 {[%clk 0:01:14]}  h4 {[%clk 0:01:09]} 22. Ne2 {[%clk 0:01:13]}  Nh5 {[%clk 0:01:08]} 23. f4 {[%clk 0:01:11]}  Qf6 {[%clk 0:00:49]} 24. e5 {[%clk 0:01:10]}  Qg7 {[%clk 0:00:45]} 25. Rff3 {[%clk 0:01:08]}  dxe5 {[%clk 0:00:36]} 26. fxe5 {[%clk 0:01:07]}  Nd3 {[%clk 0:00:36]} 27. d6 {[%clk 0:00:44]}  Rxe5 {[%clk 0:00:24]} 28. d7 {[%clk 0:00:43]}  Rd8 {[%clk 0:00:24]} 29. Bxd3 {[%clk 0:00:42]}  Re4 {[%clk 0:00:21]} 30. Bxe4 {[%clk 0:00:40]} 1-0


[Site "https://www.chess.com"]

[Event "Titled Tuesday Blitz June 21 Early 2022"]
[White "Sethuraman, S.P."]
[Black "Domingo Nunez, Ruben"]
[WhiteFideId "5021596"]
[BlackFideId "22245570"]
[WhiteElo "2473"]
[BlackElo "2376"]
[Result "1-0"]
[Round "02"]
[TimeControl "180+1"]
[Date "2022.06.21"]
[WhiteClock "0:00:10"]
[BlackClock "0:00:05"]

1. d4 {[%clk 0:03:00]}  g6 {[%clk 0:02:57]} 2. e4 {[%clk 0:03:00]}  Bg7 {[%clk 0:02:58]} 3. Nc3 {[%clk 0:02:59]}  c6 {[%clk 0:02:58]} 4. f4 {[%clk 0:02:58]}  d5 {[%clk 0:02:59]} 5. e5 {[%clk 0:02:58]}  f6 {[%clk 0:03:00]} 6. Nf3 {[%clk 0:02:57]}  Nh6 {[%clk 0:03:00]} 7. Be2 {[%clk 0:02:50]}  Bg4 {[%clk 0:02:53]} 8. Be3 {[%clk 0:02:39]}  Nf5 {[%clk 0:02:37]} 9. Bf2 {[%clk 0:02:39]}  Bxf3 {[%clk 0:02:37]} 10. Bxf3 {[%clk 0:02:39]}  fxe5 {[%clk 0:02:38]} 11. dxe5 {[%clk 0:02:33]}  e6 {[%clk 0:02:38]} 12. g3 {[%clk 0:02:28]}  O-O {[%clk 0:02:32]} 13. Qd2 {[%clk 0:02:27]}  Nd7 {[%clk 0:02:10]} 14. Ne2 {[%clk 0:02:26]}  Nh6 {[%clk 0:01:55]} 15. Bg2 {[%clk 0:02:11]}  Nb6 {[%clk 0:01:36]} 16. b3 {[%clk 0:02:05]}  Qe7 {[%clk 0:01:34]} 17. O-O {[%clk 0:01:51]}  Ng4 {[%clk 0:01:33]} 18. Bd4 {[%clk 0:01:49]}  c5 {[%clk 0:01:26]} 19. h3 {[%clk 0:01:49]}  Nh6 {[%clk 0:01:09]} 20. Bf2 {[%clk 0:01:48]}  Rad8 {[%clk 0:01:06]} 21. c3 {[%clk 0:01:44]}  Nf5 {[%clk 0:00:56]} 22. Rfe1 {[%clk 0:01:36]}  d4 {[%clk 0:00:51]} 23. c4 {[%clk 0:01:35]}  g5 {[%clk 0:00:45]} 24. fxg5 {[%clk 0:01:31]}  Bxe5 {[%clk 0:00:44]} 25. Nf4 {[%clk 0:01:31]}  Ne3 {[%clk 0:00:42]} 26. h4 {[%clk 0:00:54]}  Qd6 {[%clk 0:00:15]} 27. Nh5 {[%clk 0:00:39]}  Rf7 {[%clk 0:00:11]} 28. Nf6+ {[%clk 0:00:30]}  Bxf6 {[%clk 0:00:11]} 29. gxf6 {[%clk 0:00:30]}  Rxf6 {[%clk 0:00:12]} 30. Bxe3 {[%clk 0:00:29]}  dxe3 {[%clk 0:00:13]} 31. Qxe3 {[%clk 0:00:29]}  Qd4 {[%clk 0:00:07]} 32. Bh3 {[%clk 0:00:22]}  Qxe3+ {[%clk 0:00:06]} 33. Rxe3 {[%clk 0:00:23]}  Kf7 {[%clk 0:00:07]} 34. Rae1 {[%clk 0:00:21]}  Rd6 {[%clk 0:00:07]} 35. R1e2 {[%clk 0:00:19]}  Nd7 {[%clk 0:00:07]} 36. Kh2 {[%clk 0:00:17]}  b6 {[%clk 0:00:08]} 37. Bg4 {[%clk 0:00:17]}  Nf8 {[%clk 0:00:08]} 38. h5 {[%clk 0:00:14]}  h6 {[%clk 0:00:07]} 39. Kh3 {[%clk 0:00:14]}  Rd4 {[%clk 0:00:07]} 40. Bf3 {[%clk 0:00:14]}  Rf5 {[%clk 0:00:05]} 41. g4 {[%clk 0:00:13]}  Rff4 {[%clk 0:00:04]} 42. Kg3 {[%clk 0:00:13]}  Rf6 {[%clk 0:00:04]} 43. Be4 {[%clk 0:00:12]}  Ke7 {[%clk 0:00:03]} 44. Bf5 {[%clk 0:00:12]}  Kd6 {[%clk 0:00:03]} 45. Be4 {[%clk 0:00:12]}  Nd7 {[%clk 0:00:03]} 46. Rf3 {[%clk 0:00:10]}  Rxf3+ {[%clk 0:00:03]} 47. Bxf3 {[%clk 0:00:11]}  Ne5 {[%clk 0:00:04]} 48. Be4 {[%clk 0:00:11]}  Rd1 {[%clk 0:00:04]} 49. g5 {[%clk 0:00:10]}  hxg5 {[%clk 0:00:05]} 50. h6 {[%clk 0:00:10]}  Rf1 {[%clk 0:00:03]} 51. h7 {[%clk 0:00:10]}  Rf8 {[%clk 0:00:04]} 52. Rh2 {[%clk 0:00:09]}  Rh8 {[%clk 0:00:05]} 53. Rh5 {[%clk 0:00:09]}  Ke7 {[%clk 0:00:05]} 54. Rxg5 {[%clk 0:00:09]}  Kf7 {[%clk 0:00:05]} 55. Rxe5 {[%clk 0:00:10]}  Kf6 {[%clk 0:00:05]} 56. Rh5 {[%clk 0:00:10]} 1-0


[Site "https://www.chess.com"]

[Event "Titled Tuesday Blitz June 21 Early 2022"]
[White "Slugin, Sergey"]
[Black "Bortnyk, Olexandr"]
[WhiteFideId "4122569"]
[BlackFideId "14120828"]
[WhiteElo "2358"]
[BlackElo "2723"]
[Result "0-1"]
[Round "02"]
[TimeControl "180+1"]
[Date "2022.06.21"]
[WhiteClock "0:00:01"]
[BlackClock "0:00:24"]

1. c4 {[%clk 0:03:00]}  d6 {[%clk 0:02:59]} 2. Nc3 {[%clk 0:03:00]}  e5 {[%clk 0:02:53]} 3. Nf3 {[%clk 0:02:59]}  f5 {[%clk 0:02:53]} 4. d4 {[%clk 0:03:00]}  e4 {[%clk 0:02:54]} 5. Ng1 {[%clk 0:03:00]}  g6 {[%clk 0:02:52]} 6. h4 {[%clk 0:02:57]}  Nf6 {[%clk 0:02:50]} 7. Bf4 {[%clk 0:02:50]}  Bg7 {[%clk 0:02:48]} 8. e3 {[%clk 0:02:50]}  Be6 {[%clk 0:02:46]} 9. Nh3 {[%clk 0:02:49]}  h6 {[%clk 0:02:45]} 10. Be2 {[%clk 0:02:38]}  Nbd7 {[%clk 0:02:34]} 11. Bg3 {[%clk 0:02:37]}  Bf7 {[%clk 0:02:26]} 12. Qb3 {[%clk 0:02:18]}  O-O {[%clk 0:02:24]} 13. Nd5 {[%clk 0:01:46]}  Rb8 {[%clk 0:02:17]} 14. Nhf4 {[%clk 0:01:41]}  c6 {[%clk 0:02:15]} 15. Nxf6+ {[%clk 0:01:40]}  Nxf6 {[%clk 0:02:13]} 16. h5 {[%clk 0:01:21]}  g5 {[%clk 0:02:10]} 17. Ng6 {[%clk 0:01:21]}  Re8 {[%clk 0:02:11]} 18. Qc2 {[%clk 0:01:14]}  b5 {[%clk 0:02:02]} 19. c5 {[%clk 0:01:13]}  f4 {[%clk 0:01:44]} 20. exf4 {[%clk 0:01:10]}  e3 {[%clk 0:01:45]} 21. fxg5 {[%clk 0:00:58]}  Ne4 {[%clk 0:01:45]} 22. O-O-O {[%clk 0:00:44]}  Nxg3 {[%clk 0:01:12]} 23. fxg3 {[%clk 0:00:45]}  Qxg5 {[%clk 0:01:12]} 24. Rdf1 {[%clk 0:00:42]}  dxc5 {[%clk 0:01:01]} 25. Rf5 {[%clk 0:00:40]}  Qxg3 {[%clk 0:01:00]} 26. Rxf7 {[%clk 0:00:21]}  Kxf7 {[%clk 0:00:57]} 27. Qb3+ {[%clk 0:00:22]}  c4 {[%clk 0:00:51]} 28. Bxc4+ {[%clk 0:00:22]}  bxc4 {[%clk 0:00:50]} 29. Qxc4+ {[%clk 0:00:23]}  Re6 {[%clk 0:00:49]} 30. Rf1+ {[%clk 0:00:17]}  Bf6 {[%clk 0:00:47]} 31. Ne5+ {[%clk 0:00:18]}  Ke7 {[%clk 0:00:41]} 32. Nxc6+ {[%clk 0:00:04]}  Kd7 {[%clk 0:00:33]} 33. Nxb8+ {[%clk 0:00:03]}  Qxb8 {[%clk 0:00:34]} 34. Qd5+ {[%clk 0:00:02]}  Ke7 {[%clk 0:00:29]} 35. Re1 {[%clk 0:00:01]}  Qb4 {[%clk 0:00:24]} 0-1


[Site "https://www.chess.com"]

[Event "Titled Tuesday Blitz June 21 Early 2022"]
[White "Snehal, Bhosale"]
[Black "Samaganova, Aleksandra"]
[WhiteFideId "5021995"]
[BlackFideId "13800221"]
[WhiteElo "2103"]
[BlackElo "1864"]
[Result "0-1"]
[Round "02"]
[TimeControl "180+1"]
[Date "2022.06.22"]
[WhiteClock "0:00:11"]
[BlackClock "0:00:05"]

1. d4 {[%clk 0:03:00]}  Nf6 {[%clk 0:02:59]} 2. c4 {[%clk 0:03:01]}  e6 {[%clk 0:02:59]} 3. Nc3 {[%clk 0:03:01]}  Bb4 {[%clk 0:02:59]} 4. Qc2 {[%clk 0:03:01]}  c5 {[%clk 0:02:58]} 5. dxc5 {[%clk 0:03:01]}  Bxc5 {[%clk 0:02:58]} 6. Nf3 {[%clk 0:03:01]}  O-O {[%clk 0:02:58]} 7. Bg5 {[%clk 0:03:00]}  Be7 {[%clk 0:02:57]} 8. e3 {[%clk 0:02:53]}  a6 {[%clk 0:02:55]} 9. Bd3 {[%clk 0:02:52]}  h6 {[%clk 0:02:54]} 10. Bh4 {[%clk 0:02:50]}  Qc7 {[%clk 0:02:51]} 11. Rd1 {[%clk 0:02:43]}  d6 {[%clk 0:02:47]} 12. O-O {[%clk 0:02:42]}  Nbd7 {[%clk 0:02:47]} 13. Qe2 {[%clk 0:02:39]}  b6 {[%clk 0:02:42]} 14. Bb1 {[%clk 0:02:37]}  Bb7 {[%clk 0:02:42]} 15. Rd4 {[%clk 0:02:28]}  Rac8 {[%clk 0:02:29]} 16. b3 {[%clk 0:02:06]}  d5 {[%clk 0:02:15]} 17. Bg3 {[%clk 0:01:46]}  Qc6 {[%clk 0:02:02]} 18. Rc1 {[%clk 0:01:35]}  Bc5 {[%clk 0:01:44]} 19. cxd5 {[%clk 0:01:27]}  exd5 {[%clk 0:01:40]} 20. Rdd1 {[%clk 0:01:20]}  Qe6 {[%clk 0:01:31]} 21. Qb2 {[%clk 0:01:15]}  Qe7 {[%clk 0:01:24]} 22. Rc2 {[%clk 0:01:11]}  Ba3 {[%clk 0:01:17]} 23. Qa1 {[%clk 0:01:12]}  Nc5 {[%clk 0:00:58]} 24. Bh4 {[%clk 0:01:01]}  Rfd8 {[%clk 0:00:45]} 25. Rcd2 {[%clk 0:01:00]}  g5 {[%clk 0:00:20]} 26. Nxg5 {[%clk 0:00:55]}  hxg5 {[%clk 0:00:20]} 27. Bxg5 {[%clk 0:00:56]}  Qe5 {[%clk 0:00:15]} 28. Bf4 {[%clk 0:00:50]}  Qe6 {[%clk 0:00:10]} 29. Bg5 {[%clk 0:00:45]}  Qe5 {[%clk 0:00:02]} 30. Bf4 {[%clk 0:00:45]}  Qe6 {[%clk 0:00:03]} 31. Ne2 {[%clk 0:00:46]}  Nfe4 {[%clk 0:00:02]} 32. Nd4 {[%clk 0:00:43]}  Qg6 {[%clk 0:00:02]} 33. f3 {[%clk 0:00:37]}  Bb4 {[%clk 0:00:02]} 34. fxe4 {[%clk 0:00:36]}  Bxd2 {[%clk 0:00:02]} 35. Rxd2 {[%clk 0:00:35]}  dxe4 {[%clk 0:00:02]} 36. Rf2 {[%clk 0:00:32]}  Nd3 {[%clk 0:00:02]} 37. Rf1 {[%clk 0:00:31]}  Rc1 {[%clk 0:00:01]} 38. Rxc1 {[%clk 0:00:31]}  Nxc1 {[%clk 0:00:02]} 39. Qc3 {[%clk 0:00:30]}  Nd3 {[%clk 0:00:02]} 40. Qc7 {[%clk 0:00:28]}  Rc8 {[%clk 0:00:02]} 41. Bxd3 {[%clk 0:00:21]}  Rxc7 {[%clk 0:00:02]} 42. Bc4 {[%clk 0:00:18]}  b5 {[%clk 0:00:02]} 43. Bxc7 {[%clk 0:00:17]}  bxc4 {[%clk 0:00:02]} 44. bxc4 {[%clk 0:00:17]}  Bc6 {[%clk 0:00:02]} 45. c5 {[%clk 0:00:16]}  Bb5 {[%clk 0:00:02]} 46. Bd6 {[%clk 0:00:13]}  Qh6 {[%clk 0:00:02]} 47. Bf4 {[%clk 0:00:12]}  Qh5 {[%clk 0:00:02]} 48. Nxb5 {[%clk 0:00:10]}  axb5 {[%clk 0:00:02]} 49. c6 {[%clk 0:00:10]}  Qd1+ {[%clk 0:00:02]} 50. Kf2 {[%clk 0:00:11]}  Qc2+ {[%clk 0:00:02]} 51. Kg3 {[%clk 0:00:11]}  Qxc6 {[%clk 0:00:03]} 52. h4 {[%clk 0:00:11]}  Qc4 {[%clk 0:00:04]} 53. Kg4 {[%clk 0:00:10]}  Qxa2 {[%clk 0:00:04]} 54. h5 {[%clk 0:00:10]}  Qxg2+ {[%clk 0:00:04]} 55. Kf5 {[%clk 0:00:10]}  Qf3 {[%clk 0:00:04]} 56. Ke5 {[%clk 0:00:10]}  Qxh5+ {[%clk 0:00:04]} 57. Kd4 {[%clk 0:00:10]}  Qf3 {[%clk 0:00:04]} 58. Kc3 {[%clk 0:00:11]}  f5 {[%clk 0:00:05]} 59. Kb4 {[%clk 0:00:11]}  Qe2 {[%clk 0:00:05]} 60. Kc5 {[%clk 0:00:11]}  Qc4+ {[%clk 0:00:05]} 0-1


[Site "https://www.chess.com"]

[Event "Titled Tuesday Blitz June 21 Early 2022"]
[White "So, Wesley"]
[Black "Tica, Sven"]
[WhiteFideId "5202213"]
[BlackFideId "14526948"]
[WhiteElo "2742"]
[BlackElo "2346"]
[Result "1-0"]
[Round "02"]
[TimeControl "180+1"]
[Date "2022.06.21"]
[WhiteClock "0:02:05"]
[BlackClock "0:01:31"]

1. e4 {[%clk 0:03:00]}  g6 {[%clk 0:02:58]} 2. d4 {[%clk 0:03:00]}  Bg7 {[%clk 0:02:59]} 3. Nc3 {[%clk 0:03:01]}  a6 {[%clk 0:02:59]} 4. Be3 {[%clk 0:03:00]}  b5 {[%clk 0:03:00]} 5. Qd2 {[%clk 0:03:00]}  Bb7 {[%clk 0:03:00]} 6. f3 {[%clk 0:02:59]}  d6 {[%clk 0:03:00]} 7. h4 {[%clk 0:02:57]}  h5 {[%clk 0:03:00]} 8. O-O-O {[%clk 0:02:55]}  Nd7 {[%clk 0:02:59]} 9. Nh3 {[%clk 0:02:51]}  Rc8 {[%clk 0:02:47]} 10. Ng5 {[%clk 0:02:47]}  e6 {[%clk 0:02:23]} 11. d5 {[%clk 0:02:34]}  e5 {[%clk 0:02:13]} 12. Kb1 {[%clk 0:02:29]}  Qe7 {[%clk 0:02:10]} 13. a4 {[%clk 0:02:22]}  b4 {[%clk 0:02:02]} 14. Na2 {[%clk 0:02:20]}  a5 {[%clk 0:01:58]} 15. Nc1 {[%clk 0:02:16]}  Ngf6 {[%clk 0:01:51]} 16. Nb3 {[%clk 0:02:15]}  Ra8 {[%clk 0:01:43]} 17. Nxa5 {[%clk 0:02:13]}  Rxa5 {[%clk 0:01:33]} 18. Qxb4 {[%clk 0:02:13]}  Ra8 {[%clk 0:01:34]} 19. Qxb7 {[%clk 0:02:13]}  O-O {[%clk 0:01:34]} 20. Bb5 {[%clk 0:02:08]}  Nc5 {[%clk 0:01:30]} 21. Bxc5 {[%clk 0:02:05]}  dxc5 {[%clk 0:01:31]} 22. d6 {[%clk 0:02:05]} 1-0


[Site "https://www.chess.com"]

[Event "Titled Tuesday Blitz June 21 Early 2022"]
[White "Sovetbekova, Nurai"]
[Black "Bethke, Richard"]
[WhiteFideId "13801910"]
[BlackFideId "12959243"]
[WhiteElo "1646"]
[BlackElo "2509"]
[Result "0-1"]
[Round "02"]
[TimeControl "180+1"]
[Date "2022.06.22"]
[WhiteClock "0:00:05"]
[BlackClock "0:00:43"]

1. d4 {[%clk 0:03:00]}  Nf6 {[%clk 0:02:58]} 2. c4 {[%clk 0:03:00]}  e6 {[%clk 0:02:57]} 3. g3 {[%clk 0:03:00]}  d5 {[%clk 0:02:56]} 4. Bg2 {[%clk 0:02:59]}  Bb4+ {[%clk 0:02:33]} 5. Nd2 {[%clk 0:02:59]}  O-O {[%clk 0:02:29]} 6. Nf3 {[%clk 0:02:58]}  dxc4 {[%clk 0:02:29]} 7. O-O {[%clk 0:02:47]}  c3 {[%clk 0:02:24]} 8. Nb3 {[%clk 0:02:38]}  cxb2 {[%clk 0:02:23]} 9. Bxb2 {[%clk 0:02:39]}  Nc6 {[%clk 0:02:22]} 10. Rc1 {[%clk 0:02:35]}  a5 {[%clk 0:02:07]} 11. Qc2 {[%clk 0:02:31]}  Bd7 {[%clk 0:01:59]} 12. a3 {[%clk 0:02:17]}  Be7 {[%clk 0:01:53]} 13. Nc5 {[%clk 0:02:17]}  Bxc5 {[%clk 0:01:50]} 14. dxc5 {[%clk 0:02:15]}  Re8 {[%clk 0:01:45]} 15. Rfd1 {[%clk 0:02:00]}  e5 {[%clk 0:01:40]} 16. Ng5 {[%clk 0:01:48]}  Qe7 {[%clk 0:01:37]} 17. Rd2 {[%clk 0:01:38]}  h6 {[%clk 0:01:36]} 18. Ne4 {[%clk 0:01:37]}  Nxe4 {[%clk 0:01:36]} 19. Bxe4 {[%clk 0:01:37]}  Rad8 {[%clk 0:01:35]} 20. Rcd1 {[%clk 0:01:34]}  Bg4 {[%clk 0:01:16]} 21. Bxc6 {[%clk 0:01:15]}  bxc6 {[%clk 0:01:17]} 22. Rxd8 {[%clk 0:01:12]}  Rxd8 {[%clk 0:01:18]} 23. Rxd8+ {[%clk 0:01:12]}  Qxd8 {[%clk 0:01:18]} 24. Bxe5 {[%clk 0:01:11]}  Bh3 {[%clk 0:01:18]} 25. Qd3 {[%clk 0:00:41]}  Qe7 {[%clk 0:01:11]} 26. Bd4 {[%clk 0:00:32]}  Qe6 {[%clk 0:01:10]} 27. f3 {[%clk 0:00:30]}  Qa2 {[%clk 0:01:08]} 28. Bc3 {[%clk 0:00:17]}  a4 {[%clk 0:01:03]} 29. Kf2 {[%clk 0:00:12]}  Qb3 {[%clk 0:01:02]} 30. Qd4 {[%clk 0:00:10]}  f6 {[%clk 0:01:00]} 31. Qd8+ {[%clk 0:00:10]}  Kh7 {[%clk 0:01:00]} 32. Qd3+ {[%clk 0:00:10]}  Kg8 {[%clk 0:00:55]} 33. Qd8+ {[%clk 0:00:10]}  Kf7 {[%clk 0:00:55]} 34. Qxc7+ {[%clk 0:00:09]}  Kg6 {[%clk 0:00:56]} 35. Qa5 {[%clk 0:00:08]}  Qxa3 {[%clk 0:00:55]} 36. Bd2 {[%clk 0:00:06]}  Qa2 {[%clk 0:00:49]} 37. Be3 {[%clk 0:00:05]}  Qc4 {[%clk 0:00:47]} 38. Qb6 {[%clk 0:00:04]}  a3 {[%clk 0:00:46]} 39. Qxc6 {[%clk 0:00:04]}  a2 {[%clk 0:00:46]} 40. Qa8 {[%clk 0:00:05]}  Qb3 {[%clk 0:00:43]} 41. c6 {[%clk 0:00:05]}  Qb1 {[%clk 0:00:43]} 42. c7 {[%clk 0:00:05]}  Qf1# {[%clk 0:00:43]} 0-1


[Site "https://www.chess.com"]

[Event "Titled Tuesday Blitz June 21 Early 2022"]
[White "Svane, Rasmus"]
[Black "Mindlin, Alon"]
[WhiteFideId "4657101"]
[BlackFideId "2800071"]
[WhiteElo "2674"]
[BlackElo "2390"]
[Result "1-0"]
[Round "02"]
[TimeControl "180+1"]
[Date "2022.06.21"]
[WhiteClock "0:00:09"]
[BlackClock "0:00:20"]

1. Nf3 {[%clk 0:03:00]}  Nf6 {[%clk 0:02:59]} 2. g3 {[%clk 0:03:00]}  b6 {[%clk 0:02:59]} 3. Bg2 {[%clk 0:03:01]}  Bb7 {[%clk 0:03:00]} 4. O-O {[%clk 0:03:01]}  e6 {[%clk 0:03:00]} 5. c4 {[%clk 0:03:02]}  Be7 {[%clk 0:03:00]} 6. d4 {[%clk 0:03:02]}  O-O {[%clk 0:03:01]} 7. Re1 {[%clk 0:03:03]}  d5 {[%clk 0:02:59]} 8. cxd5 {[%clk 0:03:04]}  exd5 {[%clk 0:02:58]} 9. Nc3 {[%clk 0:03:04]}  Nbd7 {[%clk 0:02:58]} 10. Bf4 {[%clk 0:03:05]}  a6 {[%clk 0:02:57]} 11. Rc1 {[%clk 0:03:05]}  Rc8 {[%clk 0:02:57]} 12. Ne5 {[%clk 0:03:03]}  c5 {[%clk 0:02:57]} 13. dxc5 {[%clk 0:02:59]}  Nxc5 {[%clk 0:02:53]} 14. Nf3 {[%clk 0:02:28]}  Nce4 {[%clk 0:02:34]} 15. Nd4 {[%clk 0:02:10]}  Bc5 {[%clk 0:02:19]} 16. Bh3 {[%clk 0:01:55]}  Ra8 {[%clk 0:02:12]} 17. Nxe4 {[%clk 0:01:50]}  dxe4 {[%clk 0:02:10]} 18. Nb3 {[%clk 0:01:44]}  Bb4 {[%clk 0:02:06]} 19. Rf1 {[%clk 0:01:40]}  Bc8 {[%clk 0:01:58]} 20. Bxc8 {[%clk 0:01:05]}  Rxc8 {[%clk 0:01:55]} 21. a3 {[%clk 0:01:06]}  Rxc1 {[%clk 0:01:50]} 22. Qxc1 {[%clk 0:01:04]}  Qd5 {[%clk 0:01:50]} 23. Qc2 {[%clk 0:00:58]}  Be7 {[%clk 0:01:40]} 24. Rd1 {[%clk 0:00:58]}  Qh5 {[%clk 0:01:35]} 25. Kg2 {[%clk 0:00:44]}  h6 {[%clk 0:01:25]} 26. h3 {[%clk 0:00:42]}  Rd8 {[%clk 0:00:59]} 27. Rxd8+ {[%clk 0:00:41]}  Bxd8 {[%clk 0:01:00]} 28. Qc8 {[%clk 0:00:29]}  Qd5 {[%clk 0:01:00]} 29. Bc7 {[%clk 0:00:29]}  e3+ {[%clk 0:00:58]} 30. f3 {[%clk 0:00:28]}  Qxb3 {[%clk 0:00:56]} 31. Bxd8 {[%clk 0:00:25]}  Nd5 {[%clk 0:00:44]} 32. Qxa6 {[%clk 0:00:16]}  Qxb2 {[%clk 0:00:39]} 33. Qd3 {[%clk 0:00:16]}  Nc3 {[%clk 0:00:35]} 34. Qxe3 {[%clk 0:00:16]}  Nxe2 {[%clk 0:00:35]} 35. Qf2 {[%clk 0:00:15]}  b5 {[%clk 0:00:35]} 36. Be7 {[%clk 0:00:13]}  Qc2 {[%clk 0:00:35]} 37. Bb4 {[%clk 0:00:13]}  g5 {[%clk 0:00:33]} 38. Kf1 {[%clk 0:00:09]}  Qd1+ {[%clk 0:00:33]} 39. Qe1 {[%clk 0:00:09]}  Qxe1+ {[%clk 0:00:32]} 40. Bxe1 {[%clk 0:00:09]}  Nd4 {[%clk 0:00:33]} 41. Kf2 {[%clk 0:00:08]}  f5 {[%clk 0:00:30]} 42. Bc3 {[%clk 0:00:08]}  Nc6 {[%clk 0:00:29]} 43. Ke3 {[%clk 0:00:08]}  Kf7 {[%clk 0:00:30]} 44. g4 {[%clk 0:00:08]}  Ke6 {[%clk 0:00:30]} 45. Bg7 {[%clk 0:00:08]}  Na5 {[%clk 0:00:28]} 46. Bxh6 {[%clk 0:00:08]}  Nc4+ {[%clk 0:00:28]} 47. Kd3 {[%clk 0:00:08]}  Nxa3 {[%clk 0:00:28]} 48. Bxg5 {[%clk 0:00:08]}  Nc4 {[%clk 0:00:29]} 49. Bf4 {[%clk 0:00:07]}  Nb6 {[%clk 0:00:28]} 50. h4 {[%clk 0:00:07]}  Nd5 {[%clk 0:00:28]} 51. Bg5 {[%clk 0:00:08]}  fxg4 {[%clk 0:00:25]} 52. fxg4 {[%clk 0:00:08]}  Ke5 {[%clk 0:00:25]} 53. h5 {[%clk 0:00:08]}  Ke6 {[%clk 0:00:23]} 54. Kd4 {[%clk 0:00:08]}  b4 {[%clk 0:00:23]} 55. Kc4 {[%clk 0:00:07]}  Nc3 {[%clk 0:00:10]} 56. Be3 {[%clk 0:00:03]}  Ne4 {[%clk 0:00:10]} 57. Kxb4 {[%clk 0:00:03]}  Kf7 {[%clk 0:00:11]} 58. g5 {[%clk 0:00:03]}  Nf6 {[%clk 0:00:11]} 59. gxf6 {[%clk 0:00:03]}  Kxf6 {[%clk 0:00:12]} 60. Kc4 {[%clk 0:00:03]}  Kg7 {[%clk 0:00:13]} 61. Kd5 {[%clk 0:00:03]}  Kh7 {[%clk 0:00:13]} 62. Ke4 {[%clk 0:00:04]}  Kg7 {[%clk 0:00:14]} 63. Kf5 {[%clk 0:00:04]}  Kf7 {[%clk 0:00:15]} 64. Kg5 {[%clk 0:00:05]}  Kg7 {[%clk 0:00:16]} 65. h6+ {[%clk 0:00:05]}  Kh7 {[%clk 0:00:17]} 66. Kh5 {[%clk 0:00:06]}  Kg8 {[%clk 0:00:18]} 67. Kg6 {[%clk 0:00:07]}  Kh8 {[%clk 0:00:18]} 68. Bd4+ {[%clk 0:00:07]}  Kg8 {[%clk 0:00:19]} 69. h7+ {[%clk 0:00:08]}  Kf8 {[%clk 0:00:20]} 70. h8=Q+ {[%clk 0:00:08]}  Ke7 {[%clk 0:00:20]} 71. Bg7 {[%clk 0:00:09]} 1-0


[Site "https://www.chess.com"]